[Event "*** SCC Grand Prix: Titled Tuesday Blitz"]
[Site "Chess.com"]
[Date "2020.06.02"]
[Round "5"]
[White "witcher8"]
[Black "northridgehawk"]
[Result "0-1"]
[WhiteElo "2415"]
[BlackElo "2292"]
[TimeControl "180+1"]
[EndTime "10:59:08 PDT"]
[Termination "northridgehawk won on time"]

1. e4 {[%clk 0:02:34.1]} 1... e5 {[%clk 0:02:59.1]} 2. Nf3 {[%clk 0:02:33.9]}
2... Nc6 {[%clk 0:02:58.8]} 3. Bc4 {[%clk 0:02:32.4]} 3... Nf6 {[%clk
0:02:58.2]} 4. Ng5 {[%clk 0:02:32.1]} 4... d5 {[%clk 0:02:56.6]} 5. exd5 {[%clk
0:02:31.2]} 5... Na5 {[%clk 0:02:56.4]} 6. Bb5+ {[%clk 0:02:30.5]} 6... Bd7
{[%clk 0:02:56.8]} 7. Qe2 {[%clk 0:02:06]} 7... Bd6 {[%clk 0:02:51.9]} 8. Nc3
{[%clk 0:01:57.8]} 8... O-O {[%clk 0:02:49]} 9. Bxd7 {[%clk 0:01:55.2]} 9...
Qxd7 {[%clk 0:02:27.8]} 10. d3 {[%clk 0:01:53.7]} 10... c6 {[%clk 0:02:23.3]}
11. dxc6 {[%clk 0:01:35.9]} 11... Nxc6 {[%clk 0:02:24.2]} 12. O-O {[%clk
0:01:34.5]} 12... Nd4 {[%clk 0:02:21.5]} 13. Qd1 {[%clk 0:01:34.8]} 13... Rac8
{[%clk 0:02:13.8]} 14. Be3 {[%clk 0:01:34.5]} 14... Qf5 {[%clk 0:02:11.5]} 15.
Nge4 {[%clk 0:01:23.7]} 15... Be7 {[%clk 0:02:09.8]} 16. Nxf6+ {[%clk
0:01:17.9]} 16... Bxf6 {[%clk 0:02:04.1]} 17. Rc1 {[%clk 0:01:02.1]} 17... Rfd8
{[%clk 0:01:59]} 18. Ne4 {[%clk 0:00:47]} 18... Be7 {[%clk 0:01:54.7]} 19. c3
{[%clk 0:00:41.8]} 19... Ne6 {[%clk 0:01:47.9]} 20. Qe2 {[%clk 0:00:39.1]} 20...
Qg6 {[%clk 0:01:44.2]} 21. f4 {[%clk 0:00:29.5]} 21... exf4 {[%clk 0:01:42.7]}
22. Bxf4 {[%clk 0:00:29.5]} 22... Nxf4 {[%clk 0:01:42.5]} 23. Rxf4 {[%clk
0:00:28.8]} 23... Qa6 {[%clk 0:01:39.1]} 24. Rd1 {[%clk 0:00:16.7]} 24... Qxa2
{[%clk 0:01:37.5]} 25. Qh5 {[%clk 0:00:15.9]} 25... Qb3 {[%clk 0:01:31.9]} 26.
Rd2 {[%clk 0:00:14.7]} 26... Bf8 {[%clk 0:01:28.9]} 27. h3 {[%clk 0:00:14.1]}
27... g6 {[%clk 0:01:27.1]} 28. Qf3 {[%clk 0:00:13.6]} 28... Bg7 {[%clk
0:01:26.1]} 29. d4 {[%clk 0:00:13.5]} 29... Rc6 {[%clk 0:01:20]} 30. Nf6+ {[%clk
0:00:12]} 30... Bxf6 {[%clk 0:01:12.7]} 31. Rxf6 {[%clk 0:00:12.9]} 31... Rxf6
{[%clk 0:01:12.2]} 32. Qxf6 {[%clk 0:00:13.8]} 32... Re8 {[%clk 0:01:04.1]} 33.
Rf2 {[%clk 0:00:13.3]} 33... a5 {[%clk 0:00:55.8]} 34. Kh2 {[%clk 0:00:12.6]}
34... a4 {[%clk 0:00:55.7]} 35. Qf3 {[%clk 0:00:10.5]} 35... b5 {[%clk 0:00:54]}
36. Qc6 {[%clk 0:00:09.3]} 36... Re6 {[%clk 0:00:52.5]} 37. Qc8+ {[%clk
0:00:08.6]} 37... Kg7 {[%clk 0:00:52.8]} 38. Qd8 {[%clk 0:00:07.3]} 38... a3
{[%clk 0:00:47.2]} 39. bxa3 {[%clk 0:00:07.2]} 39... Qxc3 {[%clk 0:00:47.2]} 40.
Qd7 {[%clk 0:00:07]} 40... Rf6 {[%clk 0:00:39.7]} 41. Rxf6 {[%clk 0:00:06.5]}
41... Kxf6 {[%clk 0:00:40.6]} 42. Qd6+ {[%clk 0:00:05.3]} 42... Kg7 {[%clk
0:00:38.5]} 43. Qe5+ {[%clk 0:00:05.5]} 43... Kg8 {[%clk 0:00:37.4]} 44. Qc5
{[%clk 0:00:04.6]} 44... Qb3 {[%clk 0:00:32.8]} 45. Qd6 {[%clk 0:00:03.4]} 45...
Qa4 {[%clk 0:00:30.4]} 46. Qc5 {[%clk 0:00:01.9]} 46... Qa6 {[%clk 0:00:29]} 47.
Qe5 {[%clk 0:00:01.5]} 47... Qxa3 {[%clk 0:00:27.5]} 48. d5 {[%clk 0:00:02]}
48... Qc5 {[%clk 0:00:27]} 49. Qe8+ {[%clk 0:00:01.7]} 49... Kg7 {[%clk
0:00:27.1]} 50. Qe5+ {[%clk 0:00:02.3]} 50... f6 {[%clk 0:00:26.8]} 51. Qe6
{[%clk 0:00:02.1]} 51... Qf2 {[%clk 0:00:24.6]} 52. d6 {[%clk 0:00:01.7]} 52...
Qf4+ {[%clk 0:00:24.4]} 53. Kg1 {[%clk 0:00:02.3]} 53... Qd4+ {[%clk 0:00:23.9]}
54. Kf1 {[%clk 0:00:02.3]} 54... Qc4+ {[%clk 0:00:22.5]} 55. Kf2 {[%clk
0:00:02.3]} 55... Qxe6 {[%clk 0:00:21.9]} 0-1

[Event "*** SCC Grand Prix: Titled Tuesday Blitz"]
[Site "Chess.com"]
[Date "2020.06.02"]
[Round "5"]
[White "Barmen_EV"]
[Black "LiamPutnam2008"]
[Result "0-1"]
[WhiteElo "2371"]
[BlackElo "2529"]
[TimeControl "180+1"]
[EndTime "10:59:10 PDT"]
[Termination "LiamPutnam2008 won on time"]

1. d4 {[%clk 0:03:00.9]} 1... Nf6 {[%clk 0:02:52.3]} 2. c4 {[%clk 0:03:00.8]}
2... e6 {[%clk 0:02:52.3]} 3. Nc3 {[%clk 0:02:59.9]} 3... Bb4 {[%clk 0:02:52.9]}
4. e3 {[%clk 0:02:59.3]} 4... c5 {[%clk 0:02:50.9]} 5. a3 {[%clk 0:02:59.4]}
5... Bxc3+ {[%clk 0:02:50.8]} 6. bxc3 {[%clk 0:03:00.3]} 6... O-O {[%clk
0:02:47.9]} 7. Bd3 {[%clk 0:03:00.3]} 7... d6 {[%clk 0:02:46.3]} 8. Ne2 {[%clk
0:03:00.5]} 8... Nc6 {[%clk 0:02:43.7]} 9. e4 {[%clk 0:02:59.6]} 9... e5 {[%clk
0:02:42.4]} 10. O-O {[%clk 0:02:59.7]} 10... Re8 {[%clk 0:02:33.5]} 11. Bg5
{[%clk 0:02:59.2]} 11... h6 {[%clk 0:02:24.4]} 12. Bh4 {[%clk 0:02:59.3]} 12...
exd4 {[%clk 0:02:14.8]} 13. f3 {[%clk 0:02:55.4]} 13... dxc3 {[%clk 0:02:06.7]}
14. Nxc3 {[%clk 0:02:56.3]} 14... Be6 {[%clk 0:02:06.2]} 15. Qd2 {[%clk
0:02:51.5]} 15... Ne5 {[%clk 0:02:03.7]} 16. Nd5 {[%clk 0:02:46.5]} 16... Bxd5
{[%clk 0:02:01.1]} 17. cxd5 {[%clk 0:02:44.2]} 17... Nxd3 {[%clk 0:01:56.7]} 18.
Qxd3 {[%clk 0:02:43.2]} 18... Rc8 {[%clk 0:01:57.3]} 19. Rab1 {[%clk 0:02:39.1]}
19... b6 {[%clk 0:01:37.1]} 20. Qa6 {[%clk 0:02:37.6]} 20... g5 {[%clk
0:01:35.6]} 21. Bg3 {[%clk 0:02:30.1]} 21... Qd7 {[%clk 0:01:34.8]} 22. a4
{[%clk 0:02:25.7]} 22... Nh5 {[%clk 0:01:16.4]} 23. a5 {[%clk 0:02:25]} 23...
Nxg3 {[%clk 0:01:15.8]} 24. hxg3 {[%clk 0:02:25.9]} 24... bxa5 {[%clk
0:01:08.8]} 25. Rb7 {[%clk 0:02:07.7]} 25... Rc7 {[%clk 0:01:06.9]} 26. Rfb1
{[%clk 0:02:08.6]} 26... c4 {[%clk 0:00:54.4]} 27. Qxa7 {[%clk 0:02:00.9]} 27...
Rec8 {[%clk 0:00:49.3]} 28. Rxc7 {[%clk 0:02:00.6]} 28... Qxc7 {[%clk
0:00:48.6]} 29. Qxc7 {[%clk 0:01:22.1]} 29... Rxc7 {[%clk 0:00:49.5]} 30. Kf2
{[%clk 0:01:23]} 30... a4 {[%clk 0:00:27.9]} 31. Ke2 {[%clk 0:01:18.9]} 31...
Kg7 {[%clk 0:00:18]} 32. Kd2 {[%clk 0:01:07.6]} 32... c3+ {[%clk 0:00:18.4]} 33.
Kc2 {[%clk 0:01:07.5]} 33... Kf6 {[%clk 0:00:19]} 34. f4 {[%clk 0:00:52.5]}
34... a3 {[%clk 0:00:12.5]} 35. Ra1 {[%clk 0:00:35.7]} 35... Ra7 {[%clk
0:00:12.1]} 36. Kxc3 {[%clk 0:00:34.8]} 36... Ra4 {[%clk 0:00:12.6]} 37. Kd3
{[%clk 0:00:17.3]} 37... a2 {[%clk 0:00:13]} 38. Ke3 {[%clk 0:00:16.2]} 38...
Kg6 {[%clk 0:00:12.3]} 39. Kf3 {[%clk 0:00:14.8]} 39... h5 {[%clk 0:00:09.9]}
40. e5 {[%clk 0:00:07.6]} 40... dxe5 {[%clk 0:00:07.7]} 41. fxe5 {[%clk
0:00:08.5]} 41... Kf5 {[%clk 0:00:08.3]} 42. d6 {[%clk 0:00:08.7]} 42... Ra3+
{[%clk 0:00:08.2]} 43. Kf2 {[%clk 0:00:07]} 43... Ke6 {[%clk 0:00:09.1]} 44. g4
{[%clk 0:00:02.3]} 44... hxg4 {[%clk 0:00:08.8]} 45. Ke2 {[%clk 0:00:02]} 45...
g3 {[%clk 0:00:08.2]} 46. Kd2 {[%clk 0:00:01.4]} 46... g4 {[%clk 0:00:08.3]} 47.
Kc2 {[%clk 0:00:01.1]} 47... f6 {[%clk 0:00:08.2]} 0-1

[Event "*** SCC Grand Prix: Titled Tuesday Blitz"]
[Site "Chess.com"]
[Date "2020.06.02"]
[Round "5"]
[White "GHANDEEVAM2003"]
[Black "AnthonyWirig"]
[Result "1-0"]
[WhiteElo "2954"]
[BlackElo "2703"]
[TimeControl "180+1"]
[EndTime "10:59:11 PDT"]
[Termination "GHANDEEVAM2003 won on time"]

1. c4 {[%clk 0:03:00.9]} 1... c5 {[%clk 0:02:52.5]} 2. Nf3 {[%clk 0:02:58.3]}
2... g6 {[%clk 0:02:52.2]} 3. d4 {[%clk 0:02:55.7]} 3... cxd4 {[%clk 0:02:53.1]}
4. Nxd4 {[%clk 0:02:56.6]} 4... Nf6 {[%clk 0:02:51.4]} 5. Nc3 {[%clk 0:02:56.3]}
5... Nc6 {[%clk 0:02:50.9]} 6. e4 {[%clk 0:02:56.1]} 6... d6 {[%clk 0:02:50.9]}
7. Be2 {[%clk 0:02:55.7]} 7... Nxd4 {[%clk 0:02:50.9]} 8. Qxd4 {[%clk
0:02:56.6]} 8... Bg7 {[%clk 0:02:51.5]} 9. Be3 {[%clk 0:02:56.5]} 9... O-O
{[%clk 0:02:51.6]} 10. Qd2 {[%clk 0:02:56.6]} 10... Be6 {[%clk 0:02:42.2]} 11.
O-O {[%clk 0:02:54.9]} 11... Qa5 {[%clk 0:02:37.4]} 12. Rfd1 {[%clk 0:02:37.5]}
12... Rfc8 {[%clk 0:02:35.2]} 13. b3 {[%clk 0:02:38]} 13... a6 {[%clk
0:02:29.3]} 14. a4 {[%clk 0:02:32.5]} 14... Nd7 {[%clk 0:01:50.6]} 15. Rdc1
{[%clk 0:02:16.1]} 15... Nc5 {[%clk 0:01:43.4]} 16. Bxc5 {[%clk 0:01:56.1]}
16... dxc5 {[%clk 0:01:32.9]} 17. Ra2 {[%clk 0:01:55.6]} 17... Rd8 {[%clk
0:01:19.3]} 18. Qe1 {[%clk 0:01:46.8]} 18... Bd4 {[%clk 0:01:02.8]} 19. Nd5
{[%clk 0:01:42.6]} 19... Qxe1+ {[%clk 0:01:02.4]} 20. Rxe1 {[%clk 0:01:43.5]}
20... Kf8 {[%clk 0:00:56.1]} 21. g3 {[%clk 0:01:35.2]} 21... Bd7 {[%clk
0:00:43.7]} 22. Nb6 {[%clk 0:01:18.3]} 22... Rab8 {[%clk 0:00:42.5]} 23. Kg2
{[%clk 0:01:08.9]} 23... Bc6 {[%clk 0:00:42.3]} 24. Bf3 {[%clk 0:01:09.5]} 24...
Be5 {[%clk 0:00:32.3]} 25. Re3 {[%clk 0:00:53.3]} 25... e6 {[%clk 0:00:31.7]}
26. a5 {[%clk 0:00:52.7]} 26... Kg7 {[%clk 0:00:25.4]} 27. Kf1 {[%clk
0:00:50.1]} 27... h5 {[%clk 0:00:25]} 28. Bg2 {[%clk 0:00:48]} 28... Bd4 {[%clk
0:00:20]} 29. Re1 {[%clk 0:00:38.8]} 29... Bc3 {[%clk 0:00:18.6]} 30. Rc1 {[%clk
0:00:38.7]} 30... Bb4 {[%clk 0:00:13.3]} 31. e5 {[%clk 0:00:21.9]} 31... Rd3
{[%clk 0:00:12]} 32. Rb1 {[%clk 0:00:19.5]} 32... Bxg2+ {[%clk 0:00:10.7]} 33.
Kxg2 {[%clk 0:00:20.4]} 33... Rbd8 {[%clk 0:00:11]} 34. Na4 {[%clk 0:00:20.6]}
34... g5 {[%clk 0:00:08.8]} 35. Re2 {[%clk 0:00:19]} 35... Kg6 {[%clk
0:00:08.5]} 36. h3 {[%clk 0:00:19]} 36... Rd2 {[%clk 0:00:08.5]} 37. Re3 {[%clk
0:00:17.1]} 37... Ra2 {[%clk 0:00:07.5]} 38. Rf3 {[%clk 0:00:15.2]} 38... Rdd2
{[%clk 0:00:06.2]} 39. Rf1 {[%clk 0:00:12.9]} 39... Kg7 {[%clk 0:00:03.5]} 40.
h4 {[%clk 0:00:10.6]} 40... gxh4 {[%clk 0:00:03.4]} 41. gxh4 {[%clk 0:00:11.5]}
41... Rd4 {[%clk 0:00:03.9]} 42. Rg3+ {[%clk 0:00:11.2]} 42... Kh6 {[%clk
0:00:03.4]} 43. Kh3 {[%clk 0:00:11.6]} 43... Rf4 {[%clk 0:00:03.6]} 44. f3
{[%clk 0:00:11.6]} 44... Rf5 {[%clk 0:00:04]} 45. f4 {[%clk 0:00:11.6]} 45...
Bd2 {[%clk 0:00:03.8]} 46. Rgf3 {[%clk 0:00:11.5]} 46... Bb4 {[%clk 0:00:03.3]}
47. Rg1 {[%clk 0:00:10.2]} 47... Bxa5 {[%clk 0:00:02]} 48. Rg8 {[%clk
0:00:08.4]} 1-0

[Event "*** SCC Grand Prix: Titled Tuesday Blitz"]
[Site "Chess.com"]
[Date "2020.06.02"]
[Round "5"]
[White "ErikRonka"]
[Black "Arek_pacitan"]
[Result "1-0"]
[WhiteElo "2403"]
[BlackElo "2534"]
[TimeControl "180+1"]
[EndTime "10:59:12 PDT"]
[Termination "ErikRonka won by checkmate"]

1. d4 {[%clk 0:03:00.9]} 1... Nf6 {[%clk 0:02:58.4]} 2. Nc3 {[%clk 0:03:00.5]}
2... e6 {[%clk 0:02:58.7]} 3. e4 {[%clk 0:03:00.4]} 3... d5 {[%clk 0:02:58.1]}
4. e5 {[%clk 0:02:59.4]} 4... Nfd7 {[%clk 0:02:58.5]} 5. f4 {[%clk 0:02:59.1]}
5... c5 {[%clk 0:02:57.8]} 6. Nf3 {[%clk 0:02:59.2]} 6... Nc6 {[%clk 0:02:56.4]}
7. Be3 {[%clk 0:02:59.7]} 7... Qb6 {[%clk 0:02:49.2]} 8. Na4 {[%clk 0:02:59.2]}
8... Qa5+ {[%clk 0:02:39.8]} 9. c3 {[%clk 0:02:58.1]} 9... cxd4 {[%clk
0:02:33.6]} 10. b4 {[%clk 0:02:57.2]} 10... Qc7 {[%clk 0:02:27.6]} 11. Nxd4
{[%clk 0:02:55.5]} 11... Nxd4 {[%clk 0:02:25.2]} 12. Bxd4 {[%clk 0:02:44.1]}
12... b6 {[%clk 0:02:23.8]} 13. Rc1 {[%clk 0:02:31.4]} 13... Bb7 {[%clk
0:02:17.3]} 14. a3 {[%clk 0:02:25.7]} 14... Be7 {[%clk 0:02:11.6]} 15. Bd3
{[%clk 0:02:22.7]} 15... O-O {[%clk 0:02:10.6]} 16. O-O {[%clk 0:02:20.3]} 16...
Rac8 {[%clk 0:02:11]} 17. Nb2 {[%clk 0:01:50.6]} 17... Qb8 {[%clk 0:02:05.9]}
18. Qh5 {[%clk 0:01:35.4]} 18... g6 {[%clk 0:02:03.4]} 19. Qh6 {[%clk
0:01:34.5]} 19... Rfd8 {[%clk 0:02:01.3]} 20. Nd1 {[%clk 0:01:33.7]} 20... Bf8
{[%clk 0:01:44.2]} 21. Qh4 {[%clk 0:01:32]} 21... Rc4 {[%clk 0:01:36.1]} 22. Ne3
{[%clk 0:01:07]} 22... Rdc8 {[%clk 0:01:33.8]} 23. Ng4 {[%clk 0:00:54.7]} 23...
a5 {[%clk 0:01:26.4]} 24. Bxc4 {[%clk 0:00:53.8]} 24... dxc4 {[%clk 0:01:25.8]}
25. Nf6+ {[%clk 0:00:46.8]} 25... Nxf6 {[%clk 0:01:25]} 26. exf6 {[%clk
0:00:47.7]} 26... Qa8 {[%clk 0:01:17]} 27. Qg5 {[%clk 0:00:40.5]} 27... axb4
{[%clk 0:01:04.4]} 28. axb4 {[%clk 0:00:40.2]} 28... Qa2 {[%clk 0:01:03.7]} 29.
Rf2 {[%clk 0:00:33.6]} 29... Qa3 {[%clk 0:00:58.5]} 30. Rcf1 {[%clk 0:00:31.7]}
30... Rd8 {[%clk 0:00:52.8]} 31. f5 {[%clk 0:00:31]} 31... exf5 {[%clk 0:00:52]}
32. Rxf5 {[%clk 0:00:30.3]} 32... Qa8 {[%clk 0:00:45.9]} 33. R5f2 {[%clk
0:00:24]} 33... Rd5 {[%clk 0:00:45.6]} 34. Qg3 {[%clk 0:00:23]} 34... b5 {[%clk
0:00:45.7]} 35. Re2 {[%clk 0:00:19.8]} 35... Rd8 {[%clk 0:00:39.9]} 36. Rfe1
{[%clk 0:00:19.8]} 36... Bc6 {[%clk 0:00:39.8]} 37. h4 {[%clk 0:00:15.9]} 37...
h5 {[%clk 0:00:37.8]} 38. Qg5 {[%clk 0:00:15.1]} 38... Rd5 {[%clk 0:00:37.2]}
39. Re5 {[%clk 0:00:13.4]} 39... Rd8 {[%clk 0:00:37.5]} 40. Bc5 {[%clk
0:00:13.1]} 40... Kh7 {[%clk 0:00:33.1]} 41. Bxf8 {[%clk 0:00:12.7]} 41... Rxf8
{[%clk 0:00:34]} 42. Re7 {[%clk 0:00:12.9]} 42... Qa3 {[%clk 0:00:29.5]} 43. Qe3
{[%clk 0:00:11.7]} 43... Qb2 {[%clk 0:00:26.9]} 44. Re2 {[%clk 0:00:11.8]} 44...
Qb1+ {[%clk 0:00:27.3]} 45. Kh2 {[%clk 0:00:11.9]} 45... Qf5 {[%clk 0:00:27.7]}
46. Qg5 {[%clk 0:00:10.6]} 46... Qd3 {[%clk 0:00:26.9]} 47. Qc5 {[%clk 0:00:09]}
47... Ba8 {[%clk 0:00:20.4]} 48. R7e3 {[%clk 0:00:08.8]} 48... Qd8 {[%clk
0:00:19.7]} 49. Qe7 {[%clk 0:00:08.9]} 49... Qb8+ {[%clk 0:00:19.8]} 50. Qe5
{[%clk 0:00:09.2]} 50... Qc8 {[%clk 0:00:19.5]} 51. Qf4 {[%clk 0:00:09.5]} 51...
Qb7 {[%clk 0:00:19.5]} 52. Re5 {[%clk 0:00:09.3]} 52... Qc6 {[%clk 0:00:18.5]}
53. Rxh5+ {[%clk 0:00:09]} 53... gxh5 {[%clk 0:00:17.8]} 54. Qf5+ {[%clk
0:00:09.2]} 54... Kh6 {[%clk 0:00:15.9]} 55. Qg5+ {[%clk 0:00:09.4]} 55... Kh7
{[%clk 0:00:16.3]} 56. Qg7# {[%clk 0:00:09.8]} 1-0

[Event "*** SCC Grand Prix: Titled Tuesday Blitz"]
[Site "Chess.com"]
[Date "2020.06.02"]
[Round "5"]
[White "Khazieva_Elza"]
[Black "MartinCerveny"]
[Result "1-0"]
[WhiteElo "2281"]
[BlackElo "2452"]
[TimeControl "180+1"]
[EndTime "10:59:13 PDT"]
[Termination "Khazieva_Elza won by resignation"]

1. e4 {[%clk 0:02:56.8]} 1... c5 {[%clk 0:02:59.2]} 2. Nf3 {[%clk 0:02:56.1]}
2... d6 {[%clk 0:02:59.4]} 3. d3 {[%clk 0:02:55.8]} 3... Nf6 {[%clk 0:02:58.8]}
4. g3 {[%clk 0:02:56.1]} 4... g6 {[%clk 0:02:58.4]} 5. Bg2 {[%clk 0:02:55.5]}
5... Bg7 {[%clk 0:02:58.5]} 6. O-O {[%clk 0:02:55]} 6... O-O {[%clk 0:02:58.3]}
7. Re1 {[%clk 0:02:55.3]} 7... Nc6 {[%clk 0:02:57.5]} 8. e5 {[%clk 0:02:55.6]}
8... dxe5 {[%clk 0:02:56.9]} 9. Nxe5 {[%clk 0:02:56.5]} 9... Nxe5 {[%clk
0:02:56.6]} 10. Rxe5 {[%clk 0:02:57.4]} 10... Nd7 {[%clk 0:02:47.1]} 11. Re1
{[%clk 0:02:55.1]} 11... Rb8 {[%clk 0:02:41.9]} 12. a4 {[%clk 0:02:48.3]} 12...
b6 {[%clk 0:02:39.5]} 13. a5 {[%clk 0:02:48]} 13... Bb7 {[%clk 0:02:36.4]} 14.
Bxb7 {[%clk 0:02:45.8]} 14... Rxb7 {[%clk 0:02:35.4]} 15. a6 {[%clk 0:02:46.3]}
15... Rc7 {[%clk 0:02:33.4]} 16. Nc3 {[%clk 0:02:46.4]} 16... Nf6 {[%clk
0:02:23.4]} 17. Nb5 {[%clk 0:02:21.7]} 17... Rd7 {[%clk 0:02:23]} 18. Qf3 {[%clk
0:02:14.5]} 18... Nd5 {[%clk 0:02:17.4]} 19. Rd1 {[%clk 0:01:50.2]} 19... e6
{[%clk 0:02:17]} 20. h4 {[%clk 0:01:47.6]} 20... h6 {[%clk 0:02:16.7]} 21. c3
{[%clk 0:01:40.7]} 21... Qe7 {[%clk 0:02:07.5]} 22. d4 {[%clk 0:01:20]} 22...
cxd4 {[%clk 0:02:06.9]} 23. Nxd4 {[%clk 0:01:19]} 23... Rc8 {[%clk 0:02:05.6]}
24. Be3 {[%clk 0:00:59.2]} 24... Kh7 {[%clk 0:01:54.8]} 25. Nb5 {[%clk
0:00:58.2]} 25... Nxe3 {[%clk 0:01:38]} 26. Qxe3 {[%clk 0:00:54]} 26... Rc5
{[%clk 0:01:37.4]} 27. Nd4 {[%clk 0:00:35.2]} 27... Rcd5 {[%clk 0:01:35.3]} 28.
Rd2 {[%clk 0:00:21.6]} 28... Bxd4 {[%clk 0:01:26.8]} 29. Rxd4 {[%clk 0:00:21]}
29... Rxd4 {[%clk 0:01:26.8]} 30. cxd4 {[%clk 0:00:21.9]} 30... Qd6 {[%clk
0:01:12.3]} 31. Rc1 {[%clk 0:00:21.4]} 31... b5 {[%clk 0:00:58.7]} 32. Qa3
{[%clk 0:00:18.2]} 32... Kg7 {[%clk 0:00:49.6]} 33. Qa5 {[%clk 0:00:10.4]} 33...
Qxd4 {[%clk 0:00:39.7]} 34. Qxb5 {[%clk 0:00:10.4]} 34... Rd5 {[%clk 0:00:30]}
35. Qb7 {[%clk 0:00:09.5]} 35... Rd7 {[%clk 0:00:29]} 36. Rc7 {[%clk 0:00:08.1]}
36... Rxc7 {[%clk 0:00:22.7]} 37. Qxc7 {[%clk 0:00:09]} 37... e5 {[%clk
0:00:21.7]} 38. Qb7 {[%clk 0:00:06.5]} 38... e4 {[%clk 0:00:20.7]} 39. Kg2
{[%clk 0:00:05.6]} 39... g5 {[%clk 0:00:19.2]} 40. hxg5 {[%clk 0:00:05.4]} 40...
hxg5 {[%clk 0:00:20.1]} 41. Qb5 {[%clk 0:00:05.6]} 41... Kg6 {[%clk 0:00:18.8]}
42. Qb3 {[%clk 0:00:05.7]} 42... g4 {[%clk 0:00:16.6]} 43. Qb5 {[%clk
0:00:05.7]} 43... e3 {[%clk 0:00:13.8]} 44. Qc6+ {[%clk 0:00:05.8]} 44... f6
{[%clk 0:00:13]} 45. Qe8+ {[%clk 0:00:05.4]} 45... Kf5 {[%clk 0:00:13.2]} 46.
Qxe3 {[%clk 0:00:05.6]} 46... Qxb2 {[%clk 0:00:12]} 47. Qxa7 {[%clk 0:00:05.6]}
47... Qa3 {[%clk 0:00:10.4]} 48. Qb7 {[%clk 0:00:05.9]} 48... Kg5 {[%clk
0:00:09.6]} 49. a7 {[%clk 0:00:06.2]} 49... f5 {[%clk 0:00:10]} 50. a8=Q {[%clk
0:00:06.5]} 50... Qe7 {[%clk 0:00:10.4]} 51. Qxe7+ {[%clk 0:00:06.3]} 1-0

[Event "*** SCC Grand Prix: Titled Tuesday Blitz"]
[Site "Chess.com"]
[Date "2020.06.02"]
[Round "5"]
[White "ChessAintFun"]
[Black "Flawless_Fighter"]
[Result "0-1"]
[WhiteElo "2636"]
[BlackElo "2481"]
[TimeControl "180+1"]
[EndTime "10:59:14 PDT"]
[Termination "Flawless_Fighter won by resignation"]

1. e4 {[%clk 0:02:27.8]} 1... c6 {[%clk 0:02:59.7]} 2. d4 {[%clk 0:02:27.7]}
2... d5 {[%clk 0:03:00.6]} 3. e5 {[%clk 0:02:28.2]} 3... Bf5 {[%clk 0:03:00.3]}
4. Be3 {[%clk 0:02:28.9]} 4... e6 {[%clk 0:02:57.9]} 5. Nd2 {[%clk 0:02:28.7]}
5... Ne7 {[%clk 0:02:55.7]} 6. Ngf3 {[%clk 0:02:28.7]} 6... Nd7 {[%clk
0:02:53.7]} 7. Be2 {[%clk 0:02:27.5]} 7... Ng6 {[%clk 0:02:51.7]} 8. O-O {[%clk
0:02:23.9]} 8... f6 {[%clk 0:02:50.3]} 9. exf6 {[%clk 0:02:14.7]} 9... Qxf6
{[%clk 0:02:50.2]} 10. Re1 {[%clk 0:02:13.9]} 10... Bd6 {[%clk 0:02:50]} 11. Nf1
{[%clk 0:02:03.2]} 11... O-O {[%clk 0:02:49.2]} 12. Bg5 {[%clk 0:02:03]} 12...
Qf7 {[%clk 0:02:48.1]} 13. Ng3 {[%clk 0:02:03.4]} 13... Be4 {[%clk 0:02:40.4]}
14. Be3 {[%clk 0:01:56.1]} 14... Nf4 {[%clk 0:02:23.4]} 15. Ng5 {[%clk
0:01:41.6]} 15... Qg6 {[%clk 0:02:16.5]} 16. N5xe4 {[%clk 0:01:33]} 16... dxe4
{[%clk 0:02:14.8]} 17. Bg4 {[%clk 0:01:28.1]} 17... Rae8 {[%clk 0:02:05.3]} 18.
Bxf4 {[%clk 0:01:26]} 18... Rxf4 {[%clk 0:02:04.1]} 19. Bh5 {[%clk 0:01:21.2]}
19... Qh6 {[%clk 0:01:43.9]} 20. Bxe8 {[%clk 0:01:17.3]} 20... Nf6 {[%clk
0:01:44.5]} 21. Bh5 {[%clk 0:01:14]} 21... Rh4 {[%clk 0:01:44.5]} 22. h3 {[%clk
0:00:39.5]} 22... Bxg3 {[%clk 0:01:39]} 23. fxg3 {[%clk 0:00:37.8]} 23... Rxh5
{[%clk 0:01:39.9]} 24. g4 {[%clk 0:00:37.1]} 24... Rd5 {[%clk 0:01:38.6]} 25. c3
{[%clk 0:00:27.8]} 25... c5 {[%clk 0:01:35.9]} 26. Qb3 {[%clk 0:00:26.1]} 26...
cxd4 {[%clk 0:01:33.9]} 27. cxd4 {[%clk 0:00:27]} 27... Qf4 {[%clk 0:01:22.3]}
28. Qxb7 {[%clk 0:00:26.4]} 28... h5 {[%clk 0:01:21.1]} 29. Qc8+ {[%clk
0:00:20.4]} 29... Kf7 {[%clk 0:01:21.1]} 30. gxh5 {[%clk 0:00:16.4]} 30... e3
{[%clk 0:01:17.9]} 31. Rad1 {[%clk 0:00:10.2]} 31... Qf2+ {[%clk 0:01:14.8]} 32.
Kh1 {[%clk 0:00:10.7]} 32... e2 {[%clk 0:01:15.5]} 33. Rc1 {[%clk 0:00:10]}
33... Rd7 {[%clk 0:00:57.2]} 34. Qc4 {[%clk 0:00:07.3]} 34... Nxh5 {[%clk
0:00:55.7]} 35. Qc3 {[%clk 0:00:02.6]} 35... Ng3+ {[%clk 0:00:45.4]} 36. Kh2
{[%clk 0:00:03.1]} 36... Nf1+ {[%clk 0:00:45.9]} 37. Kh1 {[%clk 0:00:03.6]}
37... Ne3 {[%clk 0:00:45.5]} 38. Rg1 {[%clk 0:00:02.1]} 38... Rd5 {[%clk
0:00:23.4]} 39. Qe1 {[%clk 0:00:02.3]} 39... Rf5 {[%clk 0:00:18.1]} 40. Qxf2
{[%clk 0:00:02.2]} 40... Rxf2 {[%clk 0:00:19]} 41. Rce1 {[%clk 0:00:03]} 41...
Nf1 {[%clk 0:00:18.6]} 42. b4 {[%clk 0:00:02.3]} 42... Kf6 {[%clk 0:00:17]} 43.
a4 {[%clk 0:00:02.7]} 43... Kf5 {[%clk 0:00:16.3]} 44. Rxe2 {[%clk 0:00:02.9]}
44... Ng3+ {[%clk 0:00:15.9]} 45. Kh2 {[%clk 0:00:03.4]} 45... Nxe2 {[%clk
0:00:16.2]} 46. Rb1 {[%clk 0:00:03.4]} 46... Nxd4 {[%clk 0:00:16.1]} 47. b5
{[%clk 0:00:04.3]} 47... Ra2 {[%clk 0:00:16.1]} 48. Rb4 {[%clk 0:00:04.6]} 48...
e5 {[%clk 0:00:15.5]} 49. Rc4 {[%clk 0:00:05.1]} 49... Ke4 {[%clk 0:00:15.1]}
50. Kg3 {[%clk 0:00:05.5]} 50... Kd5 {[%clk 0:00:14.5]} 51. Rc7 {[%clk 0:00:06]}
51... Ra3+ {[%clk 0:00:13.7]} 52. Kf2 {[%clk 0:00:06]} 52... Rxa4 {[%clk
0:00:14.1]} 53. Rd7+ {[%clk 0:00:06.5]} 53... Ke4 {[%clk 0:00:14.1]} 54. Rxg7
{[%clk 0:00:07.4]} 54... Ra2+ {[%clk 0:00:13.8]} 55. Kg3 {[%clk 0:00:08]} 55...
Nf5+ {[%clk 0:00:13.2]} 0-1